[Event "Titled Tuesday Blitz February 28 Late 2023"]
[White "Tsukerman, Julia"]
[Black "Fernandez Garcia, Gumersindo"]
[WhiteFideId "2621649"]
[BlackFideId "24516740"]
[WhiteElo "1667"]
[BlackElo "2093"]
[Result "0-1"]
[Round "07"]
[TimeControl "180+2"]
[Date "2023.02.28"]
[WhiteClock "0:00:02"]
[BlackClock "0:01:09"]

1. e4 {[%clk 0:03:00]}  d6 {[%clk 0:02:59]} 2. d4 {[%clk 0:03:00]}  Nf6 {[%clk 0:02:58]} 3. Nc3 {[%clk 0:03:00]}  e5 {[%clk 0:02:59]} 4. Nge2 {[%clk 0:02:53]}  Nbd7 {[%clk 0:02:57]} 5. f3 {[%clk 0:02:50]}  Be7 {[%clk 0:02:58]} 6. Be3 {[%clk 0:02:51]}  O-O {[%clk 0:02:58]} 7. Qd2 {[%clk 0:02:51]}  c6 {[%clk 0:02:59]} 8. g4 {[%clk 0:02:50]}  b5 {[%clk 0:02:57]} 9. Ng3 {[%clk 0:02:48]}  b4 {[%clk 0:02:46]} 10. Nce2 {[%clk 0:02:44]}  a5 {[%clk 0:02:42]} 11. g5 {[%clk 0:02:36]}  Ne8 {[%clk 0:02:41]} 12. Nf5 {[%clk 0:02:31]}  Nb6 {[%clk 0:02:24]} 13. Neg3 {[%clk 0:02:25]}  exd4 {[%clk 0:02:20]} 14. Nxe7+ {[%clk 0:02:11]}  Qxe7 {[%clk 0:02:18]} 15. Bxd4 {[%clk 0:02:10]}  c5 {[%clk 0:02:16]} 16. Be3 {[%clk 0:02:03]}  f5 {[%clk 0:02:08]} 17. O-O-O {[%clk 0:01:55]}  a4 {[%clk 0:01:58]} 18. Nxf5 {[%clk 0:01:46]}  Bxf5 {[%clk 0:01:56]} 19. exf5 {[%clk 0:01:46]}  a3 {[%clk 0:01:37]} 20. Qd3 {[%clk 0:01:13]}  Qe5 {[%clk 0:01:20]} 21. Qb3+ {[%clk 0:00:57]}  Kh8 {[%clk 0:01:20]} 22. f4 {[%clk 0:00:49]}  axb2+ {[%clk 0:01:17]} 23. Kb1 {[%clk 0:00:46]}  Qe4 {[%clk 0:01:15]} 24. Bh3 {[%clk 0:00:07]}  Ra3 {[%clk 0:01:13]} 25. Qe6 {[%clk 0:00:03]}  Rxe3 {[%clk 0:01:10]} 26. Qxe4 {[%clk 0:00:02]}  Rxe4 {[%clk 0:01:10]} 27. Rxd6 {[%clk 0:00:02]}  Nxd6 {[%clk 0:01:09]} 0-1


[Site "https://www.chess.com"]

[Event "Titled Tuesday Blitz February 28 Late 2023"]
[White "rikchessmx"]
[Black "Kaufman, Raymond"]
[BlackFideId "2015056"]
[WhiteElo "2175"]
[BlackElo "2321"]
[Result "0-1"]
[Round "07"]
[TimeControl "180+2"]
[Date "2023.02.28"]
[WhiteClock "0:00:10"]
[BlackClock "0:00:41"]

1. e4 {[%clk 0:02:52]}  g6 {[%clk 0:02:53]} 2. d3 {[%clk 0:02:52]}  Bg7 {[%clk 0:02:53]} 3. Nc3 {[%clk 0:02:51]}  c6 {[%clk 0:02:45]} 4. f4 {[%clk 0:02:39]}  d5 {[%clk 0:02:45]} 5. e5 {[%clk 0:02:39]}  Nh6 {[%clk 0:02:41]} 6. Nf3 {[%clk 0:02:00]}  Bg4 {[%clk 0:02:40]} 7. h3 {[%clk 0:02:00]}  Bxf3 {[%clk 0:02:40]} 8. Qxf3 {[%clk 0:02:01]}  Nf5 {[%clk 0:02:35]} 9. g4 {[%clk 0:01:58]}  Nd4 {[%clk 0:02:35]} 10. Qf2 {[%clk 0:01:59]}  c5 {[%clk 0:02:29]} 11. Bg2 {[%clk 0:01:58]}  e6 {[%clk 0:02:29]} 12. O-O {[%clk 0:01:57]}  Nbc6 {[%clk 0:02:29]} 13. Na4 {[%clk 0:01:52]}  b6 {[%clk 0:02:18]} 14. c3 {[%clk 0:01:49]}  Nb5 {[%clk 0:02:18]} 15. c4 {[%clk 0:01:45]}  Nc7 {[%clk 0:02:16]} 16. Nc3 {[%clk 0:01:44]}  h5 {[%clk 0:02:01]} 17. g5 {[%clk 0:01:09]}  Ne7 {[%clk 0:01:57]} 18. Nb5 {[%clk 0:01:08]}  Nxb5 {[%clk 0:01:56]} 19. cxb5 {[%clk 0:01:07]}  Nf5 {[%clk 0:01:56]} 20. a4 {[%clk 0:01:05]}  a6 {[%clk 0:01:51]} 21. bxa6 {[%clk 0:01:02]}  Rxa6 {[%clk 0:01:52]} 22. b3 {[%clk 0:00:58]}  O-O {[%clk 0:01:48]} 23. Bb2 {[%clk 0:00:58]}  Qd7 {[%clk 0:01:26]} 24. d4 {[%clk 0:00:33]}  Rc8 {[%clk 0:01:08]} 25. dxc5 {[%clk 0:00:28]}  Bf8 {[%clk 0:01:03]} 26. b4 {[%clk 0:00:20]}  Rxa4 {[%clk 0:00:51]} 27. cxb6 {[%clk 0:00:14]}  Rxa1 {[%clk 0:00:48]} 28. Bxa1 {[%clk 0:00:13]}  Bxb4 {[%clk 0:00:48]} 29. Kh1 {[%clk 0:00:10]}  Bc5 {[%clk 0:00:47]} 30. Qb2 {[%clk 0:00:10]}  Ng3+ {[%clk 0:00:46]} 31. Kh2 {[%clk 0:00:09]}  Nxf1+ {[%clk 0:00:43]} 32. Bxf1 {[%clk 0:00:10]}  Rb8 {[%clk 0:00:41]} 0-1


[Site "https://www.chess.com"]

[Event "Titled Tuesday Blitz February 28 Late 2023"]
[White "Lalanne, Pablo"]
[Black "Khatena, Moshe"]
[WhiteFideId "112151"]
[BlackFideId "2010461"]
[WhiteElo "2120"]
[BlackElo "2145"]
[Result "1-0"]
[Round "07"]
[TimeControl "180+2"]
[Date "2023.02.28"]
[WhiteClock "0:00:08"]
[BlackClock "0:00:19"]

1. e4 {[%clk 0:03:00]}  g5 {[%clk 0:02:56]} 2. d4 {[%clk 0:03:00]}  Bg7 {[%clk 0:02:56]} 3. Bxg5 {[%clk 0:02:57]}  c5 {[%clk 0:02:57]} 4. Be3 {[%clk 0:02:55]}  Qb6 {[%clk 0:02:57]} 5. Nd2 {[%clk 0:02:38]}  cxd4 {[%clk 0:02:57]} 6. Nc4 {[%clk 0:02:31]}  Qb4+ {[%clk 0:02:54]} 7. Bd2 {[%clk 0:02:31]}  Qc5 {[%clk 0:02:54]} 8. b4 {[%clk 0:02:24]}  Qc7 {[%clk 0:02:48]} 9. Nf3 {[%clk 0:02:17]}  b5 {[%clk 0:02:40]} 10. Na5 {[%clk 0:02:11]}  a6 {[%clk 0:02:40]} 11. Bd3 {[%clk 0:02:10]}  Nc6 {[%clk 0:02:38]} 12. Nxc6 {[%clk 0:02:06]}  Qxc6 {[%clk 0:02:36]} 13. O-O {[%clk 0:02:05]}  d6 {[%clk 0:02:35]} 14. Re1 {[%clk 0:02:01]}  e5 {[%clk 0:02:31]} 15. a4 {[%clk 0:01:50]}  Rb8 {[%clk 0:02:18]} 16. axb5 {[%clk 0:01:48]}  axb5 {[%clk 0:02:19]} 17. Ra5 {[%clk 0:01:45]}  Nf6 {[%clk 0:02:18]} 18. Qe2 {[%clk 0:01:44]}  Bd7 {[%clk 0:02:17]} 19. Rea1 {[%clk 0:01:36]}  O-O {[%clk 0:02:14]} 20. Ra6 {[%clk 0:01:36]}  Rb6 {[%clk 0:02:04]} 21. Ra7 {[%clk 0:01:36]}  Be6 {[%clk 0:01:52]} 22. Ng5 {[%clk 0:01:33]}  Bc4 {[%clk 0:01:51]} 23. h3 {[%clk 0:01:24]}  h6 {[%clk 0:01:38]} 24. Nf3 {[%clk 0:01:23]}  Re8 {[%clk 0:01:25]} 25. Nh4 {[%clk 0:01:22]}  Be6 {[%clk 0:01:20]} 26. R1a5 {[%clk 0:01:17]}  Reb8 {[%clk 0:01:18]} 27. Qf3 {[%clk 0:01:10]}  d5 {[%clk 0:01:08]} 28. exd5 {[%clk 0:00:49]}  Bxd5 {[%clk 0:01:08]} 29. Qg3 {[%clk 0:00:45]}  Ne4 {[%clk 0:00:49]} 30. Bxe4 {[%clk 0:00:35]}  Bxe4 {[%clk 0:00:50]} 31. f3 {[%clk 0:00:27]}  Bxc2 {[%clk 0:00:47]} 32. Re7 {[%clk 0:00:18]}  R6b7 {[%clk 0:00:39]} 33. Rxb7 {[%clk 0:00:17]}  Qxb7 {[%clk 0:00:38]} 34. Bxh6 {[%clk 0:00:16]}  Bg6 {[%clk 0:00:33]} 35. Nxg6 {[%clk 0:00:14]}  fxg6 {[%clk 0:00:33]} 36. Qxg6 {[%clk 0:00:14]}  Qf7 {[%clk 0:00:32]} 37. Qd6 {[%clk 0:00:13]}  Rf8 {[%clk 0:00:26]} 38. Bxg7 {[%clk 0:00:11]}  Qxg7 {[%clk 0:00:27]} 39. Rxb5 {[%clk 0:00:09]}  d3 {[%clk 0:00:24]} 40. Qxd3 {[%clk 0:00:09]}  Qg6 {[%clk 0:00:22]} 41. Qxg6+ {[%clk 0:00:08]}  Kh8 {[%clk 0:00:21]} 42. Rxe5 {[%clk 0:00:08]}  Rg8 {[%clk 0:00:19]} 43. Rh5# {[%clk 0:00:08]} 1-0


[Site "https://www.chess.com"]

[Event "Titled Tuesday Blitz February 28 Late 2023"]
[White "Fernandez Hernandez, Gerardo"]
[Black "Manu_ChessExcelsior"]
[WhiteFideId "2207400"]
[WhiteElo "2200"]
[BlackElo "1975"]
[Result "1-0"]
[Round "07"]
[TimeControl "180+2"]
[Date "2023.02.28"]
[WhiteClock "0:00:01"]
[BlackClock "0:00:01"]

1. e4 {[%clk 0:03:00]}  e5 {[%clk 0:02:59]} 2. Nf3 {[%clk 0:03:00]}  Nc6 {[%clk 0:02:58]} 3. Bc4 {[%clk 0:03:00]}  Nf6 {[%clk 0:02:58]} 4. d3 {[%clk 0:02:55]}  Bc5 {[%clk 0:02:58]} 5. Nc3 {[%clk 0:02:51]}  a6 {[%clk 0:02:54]} 6. a4 {[%clk 0:02:49]}  Ba7 {[%clk 0:02:53]} 7. O-O {[%clk 0:02:46]}  d6 {[%clk 0:02:52]} 8. Nd5 {[%clk 0:02:34]}  Nxd5 {[%clk 0:02:50]} 9. Bxd5 {[%clk 0:02:32]}  h6 {[%clk 0:02:22]} 10. c3 {[%clk 0:02:22]}  Ne7 {[%clk 0:02:16]} 11. Ba2 {[%clk 0:02:08]}  Ng6 {[%clk 0:01:58]} 12. d4 {[%clk 0:01:59]}  O-O {[%clk 0:01:52]} 13. h3 {[%clk 0:01:47]}  Qe7 {[%clk 0:01:47]} 14. Be3 {[%clk 0:01:35]}  exd4 {[%clk 0:01:37]} 15. Bxd4 {[%clk 0:01:21]}  Qxe4 {[%clk 0:01:35]} 16. Re1 {[%clk 0:01:10]}  Qf4 {[%clk 0:01:16]} 17. Bxa7 {[%clk 0:01:07]}  Rxa7 {[%clk 0:01:14]} 18. Qd3 {[%clk 0:00:59]}  Bf5 {[%clk 0:01:04]} 19. Qe2 {[%clk 0:00:56]}  Raa8 {[%clk 0:01:00]} 20. a5 {[%clk 0:00:40]}  Bd7 {[%clk 0:00:56]} 21. Qe4 {[%clk 0:00:30]}  Qxe4 {[%clk 0:00:45]} 22. Rxe4 {[%clk 0:00:31]}  Bc6 {[%clk 0:00:45]} 23. Re3 {[%clk 0:00:27]}  Rae8 {[%clk 0:00:44]} 24. Rae1 {[%clk 0:00:25]}  Rxe3 {[%clk 0:00:43]} 25. Rxe3 {[%clk 0:00:26]}  Re8 {[%clk 0:00:39]} 26. Rxe8+ {[%clk 0:00:25]}  Bxe8 {[%clk 0:00:40]} 27. Nd4 {[%clk 0:00:25]}  Bd7 {[%clk 0:00:30]} 28. Kh2 {[%clk 0:00:24]}  Ne5 {[%clk 0:00:28]} 29. Bb1 {[%clk 0:00:17]}  Nc4 {[%clk 0:00:27]} 30. b4 {[%clk 0:00:16]}  g6 {[%clk 0:00:25]} 31. g3 {[%clk 0:00:14]}  Kg7 {[%clk 0:00:25]} 32. Bd3 {[%clk 0:00:14]}  Ne5 {[%clk 0:00:24]} 33. Be2 {[%clk 0:00:14]}  f5 {[%clk 0:00:20]} 34. f4 {[%clk 0:00:14]}  Nf7 {[%clk 0:00:17]} 35. Bc4 {[%clk 0:00:14]}  Nd8 {[%clk 0:00:16]} 36. Kg2 {[%clk 0:00:13]}  Kf6 {[%clk 0:00:17]} 37. Kf3 {[%clk 0:00:13]}  g5 {[%clk 0:00:16]} 38. fxg5+ {[%clk 0:00:12]}  hxg5 {[%clk 0:00:17]} 39. h4 {[%clk 0:00:12]}  gxh4 {[%clk 0:00:15]} 40. gxh4 {[%clk 0:00:13]}  Nc6 {[%clk 0:00:14]} 41. Nxc6 {[%clk 0:00:11]}  Bxc6+ {[%clk 0:00:15]} 42. Kf4 {[%clk 0:00:11]}  Be8 {[%clk 0:00:12]} 43. Be2 {[%clk 0:00:08]}  c5 {[%clk 0:00:09]} 44. Bf3 {[%clk 0:00:07]}  Bc6 {[%clk 0:00:03]} 45. Bxc6 {[%clk 0:00:03]}  bxc6 {[%clk 0:00:03]} 46. h5 {[%clk 0:00:03]}  cxb4 {[%clk 0:00:02]} 47. cxb4 {[%clk 0:00:03]}  d5 {[%clk 0:00:01]} 48. h6 {[%clk 0:00:02]}  d4 {[%clk 0:00:01]} 49. Kf3 {[%clk 0:00:01]} 1-0


[Site "https://www.chess.com"]

[Event "Titled Tuesday Blitz February 28 Late 2023"]
[White "Vanek, Tomas"]
[Black "Gamage, Wanshini Vidusama"]
[WhiteFideId "313459"]
[BlackFideId "9953752"]
[WhiteElo "2052"]
[BlackElo "2197"]
[Result "0-1"]
[Round "07"]
[TimeControl "180+2"]
[Date "2023.02.28"]
[WhiteClock "0:00:45"]
[BlackClock "0:00:39"]

1. g3 {[%clk 0:03:00]}  d5 {[%clk 0:02:59]} 2. Bg2 {[%clk 0:03:00]}  e5 {[%clk 0:02:58]} 3. c3 {[%clk 0:02:58]}  Nf6 {[%clk 0:02:52]} 4. d4 {[%clk 0:02:56]}  e4 {[%clk 0:02:52]} 5. h4 {[%clk 0:02:56]}  Bd6 {[%clk 0:02:47]} 6. h5 {[%clk 0:02:55]}  h6 {[%clk 0:02:45]} 7. Bf4 {[%clk 0:02:32]}  Bxf4 {[%clk 0:02:43]} 8. gxf4 {[%clk 0:02:32]}  Bg4 {[%clk 0:02:44]} 9. Qd2 {[%clk 0:02:32]}  Bxh5 {[%clk 0:02:40]} 10. Bh3 {[%clk 0:02:24]}  Bg4 {[%clk 0:02:39]} 11. f5 {[%clk 0:02:21]}  Bxh3 {[%clk 0:02:37]} 12. Nxh3 {[%clk 0:02:21]}  Nc6 {[%clk 0:02:31]} 13. Na3 {[%clk 0:02:20]}  Ne7 {[%clk 0:02:30]} 14. Qf4 {[%clk 0:02:16]}  Qd6 {[%clk 0:02:30]} 15. Qxd6 {[%clk 0:02:14]}  cxd6 {[%clk 0:02:30]} 16. Nb5 {[%clk 0:02:15]}  Kd7 {[%clk 0:02:28]} 17. Rc1 {[%clk 0:01:47]}  Nxf5 {[%clk 0:02:21]} 18. Nf4 {[%clk 0:01:47]}  a6 {[%clk 0:02:15]} 19. Na3 {[%clk 0:01:47]}  b5 {[%clk 0:02:16]} 20. Nc2 {[%clk 0:01:46]}  a5 {[%clk 0:02:06]} 21. b4 {[%clk 0:01:45]}  a4 {[%clk 0:02:06]} 22. Kd2 {[%clk 0:01:41]}  h5 {[%clk 0:02:03]} 23. Ne3 {[%clk 0:01:41]}  Nxe3 {[%clk 0:02:01]} 24. Kxe3 {[%clk 0:01:39]}  g5 {[%clk 0:01:57]} 25. Nh3 {[%clk 0:01:33]}  Ng4+ {[%clk 0:01:57]} 26. Kd2 {[%clk 0:01:33]}  f6 {[%clk 0:01:57]} 27. f3 {[%clk 0:01:27]}  Nh6 {[%clk 0:01:48]} 28. fxe4 {[%clk 0:01:27]}  dxe4 {[%clk 0:01:49]} 29. c4 {[%clk 0:01:27]}  Rab8 {[%clk 0:01:33]} 30. Rhf1 {[%clk 0:01:00]}  Rhf8 {[%clk 0:01:25]} 31. cxb5 {[%clk 0:00:58]}  Rxb5 {[%clk 0:01:17]} 32. Rc2 {[%clk 0:00:57]}  Rxb4 {[%clk 0:01:15]} 33. Nxg5 {[%clk 0:00:56]}  Ng4 {[%clk 0:00:55]} 34. Nxe4 {[%clk 0:00:53]}  Rxd4+ {[%clk 0:00:54]} 35. Ke1 {[%clk 0:00:52]}  Rxe4 {[%clk 0:00:55]} 36. Rb2 {[%clk 0:00:50]}  Rfe8 {[%clk 0:00:54]} 37. Rh1 {[%clk 0:00:49]}  R8e5 {[%clk 0:00:50]} 38. Rh3 {[%clk 0:00:48]}  Ne3 {[%clk 0:00:42]} 39. Rg3 {[%clk 0:00:46]}  Rg4 {[%clk 0:00:40]} 40. Rxg4 {[%clk 0:00:45]}  hxg4 {[%clk 0:00:41]} 41. Kf2 {[%clk 0:00:45]}  Nd1+ {[%clk 0:00:39]} 0-1


[Site "https://www.chess.com"]

[Event "Titled Tuesday Blitz February 28 Late 2023"]
[White "Cueto, Jonny"]
[Black "tandercat"]
[WhiteFideId "3300145"]
[WhiteElo "2212"]
[BlackElo "1887"]
[Result "1-0"]
[Round "07"]
[TimeControl "180+2"]
[Date "2023.02.28"]
[WhiteClock "0:00:45"]
[BlackClock "0:00:08"]

1. d4 {[%clk 0:03:00]}  d5 {[%clk 0:02:52]} 2. Nf3 {[%clk 0:03:01]}  Nf6 {[%clk 0:02:51]} 3. Bf4 {[%clk 0:03:01]}  e6 {[%clk 0:02:50]} 4. e3 {[%clk 0:03:01]}  c5 {[%clk 0:02:51]} 5. Nbd2 {[%clk 0:03:01]}  Nc6 {[%clk 0:02:51]} 6. c3 {[%clk 0:03:01]}  Bd6 {[%clk 0:02:51]} 7. Ne5 {[%clk 0:03:00]}  Qc7 {[%clk 0:02:41]} 8. Ndf3 {[%clk 0:03:00]}  O-O {[%clk 0:02:39]} 9. Bd3 {[%clk 0:02:59]}  b6 {[%clk 0:02:38]} 10. O-O {[%clk 0:02:57]}  Bb7 {[%clk 0:02:38]} 11. Nxc6 {[%clk 0:02:57]}  Bxc6 {[%clk 0:02:36]} 12. Bxd6 {[%clk 0:02:57]}  Qxd6 {[%clk 0:02:36]} 13. Ne5 {[%clk 0:02:57]}  Qc7 {[%clk 0:01:56]} 14. Qf3 {[%clk 0:02:27]}  Ne4 {[%clk 0:01:53]} 15. Qh3 {[%clk 0:02:21]}  f5 {[%clk 0:01:26]} 16. Nxc6 {[%clk 0:02:04]}  Qxc6 {[%clk 0:01:25]} 17. Bxe4 {[%clk 0:02:04]}  fxe4 {[%clk 0:01:16]} 18. f3 {[%clk 0:02:04]}  exf3 {[%clk 0:01:11]} 19. Rxf3 {[%clk 0:02:05]}  Rxf3 {[%clk 0:01:10]} 20. Qxf3 {[%clk 0:01:59]}  Rf8 {[%clk 0:01:09]} 21. Qg4 {[%clk 0:01:58]}  Qd6 {[%clk 0:01:01]} 22. Rf1 {[%clk 0:01:53]}  Rxf1+ {[%clk 0:00:53]} 23. Kxf1 {[%clk 0:01:54]}  Qf8+ {[%clk 0:00:44]} 24. Ke2 {[%clk 0:01:42]}  Qf5 {[%clk 0:00:45]} 25. Qxf5 {[%clk 0:01:20]}  exf5 {[%clk 0:00:45]} 26. dxc5 {[%clk 0:01:20]}  bxc5 {[%clk 0:00:45]} 27. Kd3 {[%clk 0:01:20]}  Kf7 {[%clk 0:00:44]} 28. c4 {[%clk 0:01:20]}  Ke6 {[%clk 0:00:41]} 29. a3 {[%clk 0:01:10]}  a5 {[%clk 0:00:39]} 30. b3 {[%clk 0:01:08]}  g5 {[%clk 0:00:38]} 31. g3 {[%clk 0:01:06]}  h5 {[%clk 0:00:36]} 32. h3 {[%clk 0:01:06]}  h4 {[%clk 0:00:32]} 33. gxh4 {[%clk 0:01:01]}  gxh4 {[%clk 0:00:25]} 34. Ke2 {[%clk 0:01:01]}  Ke5 {[%clk 0:00:26]} 35. Kf3 {[%clk 0:00:58]}  a4 {[%clk 0:00:17]} 36. bxa4 {[%clk 0:00:56]}  dxc4 {[%clk 0:00:17]} 37. a5 {[%clk 0:00:55]}  c3 {[%clk 0:00:17]} 38. Ke2 {[%clk 0:00:53]}  Ke4 {[%clk 0:00:16]} 39. a6 {[%clk 0:00:48]}  c2 {[%clk 0:00:10]} 40. Kd2 {[%clk 0:00:47]}  c4 {[%clk 0:00:07]} 41. a7 {[%clk 0:00:47]}  c3+ {[%clk 0:00:07]} 42. Kxc2 {[%clk 0:00:47]}  Kxe3 {[%clk 0:00:08]} 43. a8=Q {[%clk 0:00:47]}  f4 {[%clk 0:00:08]} 44. Qg2 {[%clk 0:00:45]} 1-0


[Site "https://www.chess.com"]

[Event "Titled Tuesday Blitz February 28 Late 2023"]
[White "Mendez Machado, Andre"]
[Black "Burke, Paul"]
[WhiteFideId "6603793"]
[BlackFideId "2605767"]
[WhiteElo "1989"]
[BlackElo "1895"]
[Result "1-0"]
[Round "07"]
[TimeControl "180+2"]
[Date "2023.02.28"]
[WhiteClock "0:01:34"]
[BlackClock "0:00:51"]

1. e4 {[%clk 0:03:00]}  e5 {[%clk 0:02:59]} 2. Nf3 {[%clk 0:03:00]}  Nc6 {[%clk 0:02:59]} 3. Bc4 {[%clk 0:03:01]}  Be7 {[%clk 0:02:59]} 4. d4 {[%clk 0:03:00]}  exd4 {[%clk 0:02:59]} 5. Nxd4 {[%clk 0:03:01]}  d6 {[%clk 0:02:59]} 6. O-O {[%clk 0:03:00]}  Nf6 {[%clk 0:02:58]} 7. Nc3 {[%clk 0:03:01]}  O-O {[%clk 0:02:58]} 8. h3 {[%clk 0:02:56]}  Ne5 {[%clk 0:02:56]} 9. Bb3 {[%clk 0:02:53]}  c5 {[%clk 0:02:56]} 10. Nf3 {[%clk 0:02:49]}  Nxf3+ {[%clk 0:02:56]} 11. Qxf3 {[%clk 0:02:50]}  Be6 {[%clk 0:02:54]} 12. Qg3 {[%clk 0:02:44]}  Bxb3 {[%clk 0:02:51]} 13. axb3 {[%clk 0:02:45]}  Kh8 {[%clk 0:02:21]} 14. Rd1 {[%clk 0:02:38]}  Qc8 {[%clk 0:01:44]} 15. Qf3 {[%clk 0:02:20]}  Qe6 {[%clk 0:01:37]} 16. Bg5 {[%clk 0:02:10]}  a6 {[%clk 0:01:32]} 17. Bxf6 {[%clk 0:01:54]}  Bxf6 {[%clk 0:01:27]} 18. Nd5 {[%clk 0:01:54]}  Bxb2 {[%clk 0:01:16]} 19. Rab1 {[%clk 0:01:45]}  Qe5 {[%clk 0:01:12]} 20. c3 {[%clk 0:01:42]}  f5 {[%clk 0:01:00]} 21. Rxb2 {[%clk 0:01:37]}  fxe4 {[%clk 0:01:00]} 22. Qg3 {[%clk 0:01:36]}  Qe8 {[%clk 0:00:51]} 23. Nc7 {[%clk 0:01:34]} 1-0


[Site "https://www.chess.com"]

[Event "Titled Tuesday Blitz February 28 Late 2023"]
[White "Govender, Kaedan"]
[Black "Golichenko, Ilija"]
[WhiteFideId "14322072"]
[BlackFideId "14117223"]
[WhiteElo "1953"]
[BlackElo "2350"]
[Result "1-0"]
[Round "07"]
[TimeControl "180+2"]
[Date "2023.02.28"]
[WhiteClock "0:01:13"]
[BlackClock "0:01:48"]

1. d4 {[%clk 0:02:52]}  Nf6 {[%clk 0:03:00]} 2. c4 {[%clk 0:02:52]}  e6 {[%clk 0:03:00]} 3. Nc3 {[%clk 0:02:51]}  Bb4 {[%clk 0:02:59]} 4. a3 {[%clk 0:02:41]}  Bxc3+ {[%clk 0:02:57]} 5. bxc3 {[%clk 0:02:42]}  c5 {[%clk 0:02:58]} 6. d5 {[%clk 0:02:18]}  d6 {[%clk 0:02:55]} 7. Qc2 {[%clk 0:02:14]}  e5 {[%clk 0:02:47]} 8. e4 {[%clk 0:02:14]}  Qa5 {[%clk 0:02:37]} 9. Bd3 {[%clk 0:02:12]}  O-O {[%clk 0:02:35]} 10. Bg5 {[%clk 0:02:12]}  Nbd7 {[%clk 0:02:33]} 11. Ne2 {[%clk 0:02:11]}  h6 {[%clk 0:02:33]} 12. Bh4 {[%clk 0:02:11]}  a6 {[%clk 0:02:31]} 13. O-O {[%clk 0:02:11]}  b5 {[%clk 0:02:31]} 14. f4 {[%clk 0:02:08]}  exf4 {[%clk 0:02:28]} 15. Nxf4 {[%clk 0:02:07]}  Ng4 {[%clk 0:02:28]} 16. Qe2 {[%clk 0:01:56]}  Nge5 {[%clk 0:02:25]} 17. Nh5 {[%clk 0:01:49]}  Nxd3 {[%clk 0:02:24]} 18. Qxd3 {[%clk 0:01:50]}  Ne5 {[%clk 0:02:24]} 19. Qg3 {[%clk 0:01:46]}  g6 {[%clk 0:02:20]} 20. Bf6 {[%clk 0:01:30]}  Nxc4 {[%clk 0:02:00]} 21. Qf4 {[%clk 0:01:17]}  Kh7 {[%clk 0:01:59]} 22. Bg7 {[%clk 0:01:14]}  Bb7 {[%clk 0:01:48]} 23. Qxh6+ {[%clk 0:01:13]} 1-0


[Site "https://www.chess.com"]

[Event "Titled Tuesday Blitz February 28 Late 2023"]
[White "Dias, Joao Batista"]
[Black "Kujawski, Adam"]
[WhiteFideId "2108240"]
[BlackFideId "1100920"]
[WhiteElo "1907"]
[BlackElo "2054"]
[Result "0-1"]
[Round "07"]
[TimeControl "180+2"]
[Date "2023.02.28"]
[WhiteClock "0:01:05"]
[BlackClock "0:00:08"]

1. e4 {[%clk 0:03:00]}  e5 {[%clk 0:03:00]} 2. Nf3 {[%clk 0:03:00]}  Nc6 {[%clk 0:03:00]} 3. d4 {[%clk 0:03:00]}  exd4 {[%clk 0:03:00]} 4. Nxd4 {[%clk 0:03:01]}  Bb4+ {[%clk 0:02:59]} 5. c3 {[%clk 0:03:00]}  Bc5 {[%clk 0:02:59]} 6. Nxc6 {[%clk 0:02:59]}  bxc6 {[%clk 0:02:58]} 7. Bd3 {[%clk 0:02:59]}  Qh4 {[%clk 0:02:58]} 8. O-O {[%clk 0:02:59]}  Nf6 {[%clk 0:02:58]} 9. Qf3 {[%clk 0:02:58]}  Ng4 {[%clk 0:02:57]} 10. Qg3 {[%clk 0:02:57]}  Qxg3 {[%clk 0:02:56]} 11. hxg3 {[%clk 0:02:56]}  d6 {[%clk 0:02:43]} 12. a4 {[%clk 0:02:53]}  a5 {[%clk 0:02:41]} 13. Na3 {[%clk 0:02:52]}  Ne5 {[%clk 0:02:17]} 14. Be2 {[%clk 0:02:48]}  Be6 {[%clk 0:02:17]} 15. Kh2 {[%clk 0:02:43]}  h5 {[%clk 0:02:14]} 16. f4 {[%clk 0:02:42]}  Ng4+ {[%clk 0:02:06]} 17. Kh1 {[%clk 0:02:42]}  h4 {[%clk 0:01:44]} 18. Bxg4 {[%clk 0:02:32]}  Bxg4 {[%clk 0:01:43]} 19. Kh2 {[%clk 0:02:32]}  Be2 {[%clk 0:01:36]} 20. Bd2 {[%clk 0:02:19]}  Bxf1 {[%clk 0:01:34]} 21. Rxf1 {[%clk 0:02:19]}  hxg3+ {[%clk 0:01:31]} 22. Kxg3 {[%clk 0:02:19]}  Bxa3 {[%clk 0:01:31]} 23. bxa3 {[%clk 0:02:18]}  Rb8 {[%clk 0:01:31]} 24. c4 {[%clk 0:02:17]}  Rb3+ {[%clk 0:01:28]} 25. Kg4 {[%clk 0:02:17]}  Rxa3 {[%clk 0:01:24]} 26. Bxa5 {[%clk 0:02:17]}  Rxa4 {[%clk 0:01:23]} 27. Bxc7 {[%clk 0:02:17]}  Kd7 {[%clk 0:01:23]} 28. Bb6 {[%clk 0:02:15]}  Rxc4 {[%clk 0:01:21]} 29. Ra1 {[%clk 0:02:14]}  Rxe4 {[%clk 0:01:11]} 30. Kf5 {[%clk 0:02:14]}  Rb4 {[%clk 0:00:34]} 31. Ra7+ {[%clk 0:02:10]}  Kc8 {[%clk 0:00:34]} 32. Ra8+ {[%clk 0:02:10]}  Kb7 {[%clk 0:00:34]} 33. Rxh8 {[%clk 0:02:10]}  Rxb6 {[%clk 0:00:33]} 34. Rf8 {[%clk 0:02:09]}  g6+ {[%clk 0:00:31]} 35. Kg5 {[%clk 0:02:06]}  Rb5+ {[%clk 0:00:29]} 36. Kg4 {[%clk 0:02:02]}  Rf5 {[%clk 0:00:29]} 37. Kf3 {[%clk 0:02:01]}  c5 {[%clk 0:00:28]} 38. g4 {[%clk 0:02:01]}  Rf6 {[%clk 0:00:29]} 39. Ke4 {[%clk 0:02:01]}  Kc6 {[%clk 0:00:28]} 40. Rc8+ {[%clk 0:02:00]}  Kd7 {[%clk 0:00:28]} 41. Ra8 {[%clk 0:01:58]}  Re6+ {[%clk 0:00:27]} 42. Kd5 {[%clk 0:01:57]}  Re1 {[%clk 0:00:26]} 43. Ra7+ {[%clk 0:01:57]}  Ke8 {[%clk 0:00:26]} 44. Kxd6 {[%clk 0:01:57]}  Re6+ {[%clk 0:00:23]} 45. Kxc5 {[%clk 0:01:56]}  Re4 {[%clk 0:00:21]} 46. f5 {[%clk 0:01:45]}  gxf5 {[%clk 0:00:20]} 47. gxf5 {[%clk 0:01:45]}  Re5+ {[%clk 0:00:20]} 48. Kd6 {[%clk 0:01:46]}  f6 {[%clk 0:00:12]} 49. Ra8+ {[%clk 0:01:42]}  Kf7 {[%clk 0:00:12]} 50. Ra7+ {[%clk 0:01:42]}  Kf8 {[%clk 0:00:13]} 51. Ra8+ {[%clk 0:01:41]}  Kg7 {[%clk 0:00:13]} 52. Ra7+ {[%clk 0:01:37]}  Kh6 {[%clk 0:00:14]} 53. Ra8 {[%clk 0:01:35]}  Kg5 {[%clk 0:00:13]} 54. Rf8 {[%clk 0:01:31]}  Kxf5 {[%clk 0:00:13]} 55. Rg8 {[%clk 0:01:31]}  Ra5 {[%clk 0:00:12]} 56. Rg1 {[%clk 0:01:29]}  Ra4 {[%clk 0:00:11]} 57. Kd5 {[%clk 0:01:28]}  Rf4 {[%clk 0:00:09]} 58. Rg8 {[%clk 0:01:25]}  Ra4 {[%clk 0:00:08]} 59. Rg1 {[%clk 0:01:25]}  Rf4 {[%clk 0:00:07]} 60. Rg2 {[%clk 0:01:24]}  Rf3 {[%clk 0:00:06]} 61. Kd4 {[%clk 0:01:24]}  Kf4 {[%clk 0:00:07]} 62. Rg1 {[%clk 0:01:22]}  f5 {[%clk 0:00:07]} 63. Rg8 {[%clk 0:01:20]}  Ra3 {[%clk 0:00:07]} 64. Rg1 {[%clk 0:01:19]}  Kf3 {[%clk 0:00:07]} 65. Rf1+ {[%clk 0:01:19]}  Kg4 {[%clk 0:00:07]} 66. Ke5 {[%clk 0:01:17]}  Ra5+ {[%clk 0:00:06]} 67. Kd4 {[%clk 0:01:16]}  f4 {[%clk 0:00:07]} 68. Ke4 {[%clk 0:01:15]}  Ra4+ {[%clk 0:00:06]} 69. Kd3 {[%clk 0:01:15]}  Ra2 {[%clk 0:00:06]} 70. Ke4 {[%clk 0:01:15]}  Re2+ {[%clk 0:00:06]} 71. Kd3 {[%clk 0:01:14]}  Re8 {[%clk 0:00:07]} 72. Rg1+ {[%clk 0:01:11]}  Kf3 {[%clk 0:00:07]} 73. Rf1+ {[%clk 0:01:11]}  Kg3 {[%clk 0:00:07]} 74. Kd2 {[%clk 0:01:08]}  f3 {[%clk 0:00:07]} 75. Kd1 {[%clk 0:01:08]}  Kg2 {[%clk 0:00:08]} 76. Re1 {[%clk 0:01:05]}  Rxe1+ {[%clk 0:00:08]} 77. Kxe1 {[%clk 0:01:05]}  f2+ {[%clk 0:00:08]} 0-1


[Site "https://www.chess.com"]